[Event "ESP-chT 2nd Division 2019"]
[Site "Linares"]
[Date "2019.08.19"]
[Round "1.27"]
[White "Barranco Mananet, Fernando"]
[Black "Laiz Ibanez, Hector"]
[Result "0-1"]
[ECO "C00"]
[WhiteElo "2045"]
[BlackElo "2274"]
[Annotator "NA"]
[PlyCount "74"]
[EventDate "2019.08.19"]
[EventType "team-tourn"]
[EventCountry "ESP"]
[SourceTitle "playchess.com"]
[Source "ChessBase"]
[SourceQuality "1"]
[TimeControl "5400+30"]

1. e4 {[%emt 0:00:00]} e6 {[%emt 0:00:00]} 2. d4 {[%emt 0:00:00]} d5 {[%emt 0:00:00]} 3. Bd3 {[%emt 0:00:00]} c5 {[%emt 0:00:14]} 4. exd5 {[%emt 0:00:16]} exd5 {[%emt 0:00:07]} 5. Nf3 {[%emt 0:01:20]} c4 {[%emt 0:00:15]} 6. Be2 {[%emt 0:00:11]} Bd6 {[%emt 0:00:08]} 7. b3 {[%emt 0:01:16]} cxb3 {[%emt 0:00:13]} 8. axb3 {[%emt 0:00:10]} Ne7 {[%emt 0:01:09]} 9. O-O {[%emt 0:01:12]} O-O {[%emt 0:00:13]} 10. Bb2 {[%emt 0:02:35]} Nbc6 {[%emt 0:01:38]} 11. Na3 {[%emt 0:03:31]} Ng6 {[%emt 0:09:07]} 12. Nb5 {[%emt 0:04:41]} Bb8 {[%emt 0:00:11]} 13. c4 {[%emt 0:00:32]} Nf4 {[%emt 0:02:43]} 14. cxd5 {[%emt 0:09:49]} Nxe2+ {[%emt 0:04:28]} 15. Qxe2 {[%emt 0:00:06]} Qxd5 {[%emt 0:01:04]} 16. Qc4 {[%emt 0:02:27]} Be6 {[%emt 0:06:45]} 17. Qxd5 {[%emt 0:01:44]} Bxd5 {[%emt 0:00:06]} 18. Nd2 {[%emt 0:03:31]} a6 {[%emt 0:13:10]} 19. Nc3 {[%emt 0:18:38]} Rd8 {[%emt 0:01:29]} 20. Nxd5 {[%emt 0:12:51]} Rxd5 {[%emt 0:00:15]} 21. Nc4 {[%emt 0:07:14]} Ba7 {[%emt 0:01:37]} 22. Ne3 {[%emt 0:02:29]} Rd7 {[%emt 0:02:15]} 23. d5 {[%emt 0:06:19]} Ne7 {[%emt 0:01:59]} 24. Rfe1 {[%emt 0:04:57]} Bxe3 {[%emt 0:06:16]} 25. Rxe3 {[%emt 0:00:12]} Nxd5 {[%emt 0:00:07]} 26. Rd3 {[%emt 0:00:26]} Rad8 {[%emt 0:01:13]} 27. Rad1 {[%emt 0:01:32]} f6 {[%emt 0:01:44]} 28. g3 {[%emt 0:00:46]} Nb6 {[%emt 0:01:48]} 29. Rxd7 {[%emt 0:00:41]} Rxd7 {[%emt 0:00:06]} 30. Rxd7 {[%emt 0:00:29]} Nxd7 {[%emt 0:00:05]} 31. b4 {[%emt 0:00:45]} Kf7 {[%emt 0:00:31]} 32. Kf1 {[%emt 0:00:20]} Ke6 {[%emt 0:00:06]} 33. Ke2 {[%emt 0:01:22]} Kd5 {[%emt 0:00:03]} 34. Kd3 {[%emt 0:06:29]} Ne5+ {[%emt 0:00:05]} 35. Bxe5 {[%emt 0:03:10]} fxe5 {[%emt 0:00:56]} 36. f3 {[%emt 0:00:59]} b6 {[%emt 0:00:06]} 37. Kc3 {[%emt 0:00:31]} a5 {[%emt 0:00:19] Kd4+} 0-1

[Event "ESP-chT 2nd Division 2019"]
[Site "Linares"]
[Date "2019.08.19"]
[Round "1.28"]
[White "Torrado Quintela, Julio"]
[Black "Arrieta Restrepo, Steven"]
[Result "1-0"]
[ECO "B74"]
[WhiteElo "2169"]
[BlackElo "1974"]
[Annotator "NA"]
[PlyCount "75"]
[EventDate "2019.08.19"]
[EventType "team-tourn"]
[EventCountry "ESP"]
[SourceTitle "playchess.com"]
[Source "ChessBase"]
[SourceQuality "1"]
[TimeControl "5400+30"]

1. e4 {[%emt 0:00:00]} c5 {[%emt 0:00:00]} 2. Nc3 {[%emt 0:01:07]} Nc6 {[%emt 0:01:17]} 3. Nf3 {[%emt 0:00:27]} g6 {[%emt 0:02:53]} 4. d4 {[%emt 0:00:14]} cxd4 {[%emt 0:00:10]} 5. Nxd4 {[%emt 0:00:05]} Bg7 {[%emt 0:00:07]} 6. Be3 {[%emt 0:00:06]} d6 {[%emt 0:00:49]} 7. Be2 {[%emt 0:05:57]} Nf6 {[%emt 0:04:26]} 8. O-O {[%emt 0:09:01]} O-O {[%emt 0:00:17]} 9. Nb3 {[%emt 0:00:14]} a6 {[%emt 0:13:39]} 10. a4 {[%emt 0:00:46]} Be6 {[%emt 0:00:07]} 11. f4 {[%emt 0:03:44]} Rc8 {[%emt 0:07:28]} 12. Bf3 {[%emt 0:03:04]} Bxb3 {[%emt 0:07:40]} 13. cxb3 {[%emt 0:01:25]} Qa5 {[%emt 0:06:50]} 14. Kh1 {[%emt 0:01:08]} Rfd8 {[%emt 0:05:27]} 15. Qe2 {[%emt 0:23:52]} Qb4 {[%emt 0:11:21]} 16. a5 {[%emt 0:00:15]} e5 {[%emt 0:08:55]} 17. Qd1 {[%emt 0:15:49]} Nd4 {[%emt 0:15:20]} 18. Ra4 {[%emt 0:00:16]} Qc5 {[%emt 0:00:06]} 19. Ne2 {[%emt 0:03:52]} Qc2 {[%emt 0:07:13]} 20. Nxd4 {[%emt 0:01:21]} exd4 {[%emt 0:00:07]} 21. Bxd4 {[%emt 0:00:16]} Qxd1 {[%emt 0:01:51]} 22. Rxd1 {[%emt 0:00:05]} Nd7 {[%emt 0:01:08]} 23. Bxg7 {[%emt 0:06:22]} Kxg7 {[%emt 0:00:02]} 24. h3 {[%emt 0:00:28]} Nc5 {[%emt 0:00:33]} 25. Rb4 {[%emt 0:00:12]} Kf6 {[%emt 0:02:38]} 26. Rb6 {[%emt 0:01:37]} Ke7 {[%emt 0:01:42]} 27. b4 {[%emt 0:00:36]} Ne6 {[%emt 0:00:32]} 28. Rxb7+ {[%emt 0:00:13]} Kf6 {[%emt 0:00:05]} 29. Rb6 {[%emt 0:03:27]} Rb8 {[%emt 0:01:04]} 30. Rxa6 {[%emt 0:00:24]} Rxb4 {[%emt 0:00:30]} 31. e5+ {[%emt 0:01:05]} Kf5 {[%emt 0:00:33]} 32. Raxd6 {[%emt 0:00:08]} Rdb8 {[%emt 0:00:27]} 33. a6 {[%emt 0:01:01]} Ra4 {[%emt 0:00:31]} 34. Rd7 {[%emt 0:00:55]} Kxf4 {[%emt 0:00:32]} 35. a7 {[%emt 0:00:17]} Rf8 {[%emt 0:00:29]} 36. a8=Q {[%emt 0:00:31]} Raxa8 {[%emt 0:00:02]} 37. Bxa8 {[%emt 0:00:08]} Rxa8 38. Rxf7+ {[%emt 0:00:11]} 1-0

[Event "ESP-chT 2nd Division 2019"]
[Site "Linares"]
[Date "2019.08.19"]
[Round "1.29"]
[White "Garreta Nieto, Maria"]
[Black "Cruz Alvarez de Ron, Dan"]
[Result "0-1"]
[ECO "B06"]
[WhiteElo "1791"]
[BlackElo "2125"]
[Annotator "NA"]
[PlyCount "72"]
[EventDate "2019.08.19"]
[EventType "team-tourn"]
[EventCountry "ESP"]
[SourceTitle "playchess.com"]
[Source "ChessBase"]
[SourceQuality "1"]
[TimeControl "5400+30"]

1. e4 {[%emt 0:00:00]} g6 {[%emt 0:00:00]} 2. Nf3 {[%emt 0:00:51]} Bg7 {[%emt 0:00:09]} 3. d4 {[%emt 0:01:18]} d6 {[%emt 0:00:16]} 4. Bd3 {[%emt 0:03:08]} Nd7 {[%emt 0:00:28]} 5. c3 {[%emt 0:02:46]} e6 {[%emt 0:00:34]} 6. O-O {[%emt 0:03:24]} Ne7 {[%emt 0:01:56]} 7. Be3 {[%emt 0:05:03]} b6 {[%emt 0:00:14]} 8. Re1 {[%emt 0:06:30]} Bb7 {[%emt 0:00:15]} 9. Nbd2 {[%emt 0:02:43]} h6 {[%emt 0:03:25]} 10. Nc4 {[%emt 0:12:26]} Nf6 {[%emt 0:04:17]} 11. Ncd2 {[%emt 0:05:44]} g5 {[%emt 0:08:19]} 12. h3 {[%emt 0:09:05]} g4 {[%emt 0:07:39]} 13. hxg4 {[%emt 0:06:29]} Nxg4 {[%emt 0:00:21]} 14. Qa4+ {[%emt 0:03:53]} Qd7 {[%emt 0:05:33]} 15. Bb5 {[%emt 0:06:34]} c6 {[%emt 0:01:55]} 16. Ba6 {[%emt 0:04:26]} Bxa6 {[%emt 0:00:58]} 17. Qxa6 {[%emt 0:00:06]} Ng6 {[%emt 0:00:28]} 18. Qe2 {[%emt 0:01:35]} h5 {[%emt 0:02:06]} 19. Nf1 {[%emt 0:05:27]} Nxe3 {[%emt 0:00:57]} 20. Nxe3 {[%emt 0:01:09]} Nf4 {[%emt 0:00:13]} 21. Qc2 {[%emt 0:00:30]} h4 {[%emt 0:01:47]} 22. Rad1 {[%emt 0:03:22]} O-O-O {[%emt 0:04:05]} 23. c4 {[%emt 0:02:54]} Rdg8 {[%emt 0:01:15]} 24. Kh1 {[%emt 0:03:01]} Bh6 {[%emt 0:06:30]} 25. Rg1 {[%emt 0:00:59]} Nh5 {[%emt 0:00:40]} 26. Rge1 {[%emt 0:02:37]} Bxe3 {[%emt 0:05:21]} 27. Rxe3 {[%emt 0:01:14]} Nf4 {[%emt 0:00:18]} 28. Ne1 {[%emt 0:01:33]} f6 {[%emt 0:03:26]} 29. e5 {[%emt 0:03:58]} f5 {[%emt 0:01:04]} 30. f3 {[%emt 0:00:43]} h3 {[%emt 0:00:45]} 31. g4 {[%emt 0:00:24]} fxg4 {[%emt 0:00:18]} 32. fxg4 {[%emt 0:00:19]} Rxg4 {[%emt 0:00:24]} 33. Nd3 {[%emt 0:01:01]} Nxd3 {[%emt 0:06:05]} 34. Qxd3 {[%emt 0:00:31]} Qg7 {[%emt 0:00:59]} 35. exd6 {[%emt 0:00:55]} Rg2 {[%emt 0:01:57]} 36. Ree1 {[%emt 0:00:34]} Rh2+ {[%emt 0:00:18]} 0-1

[Event "ESP-chT 2nd Division 2019"]
[Site "Linares"]
[Date "2019.08.19"]
[Round "1.30"]
[White "Dorado Meijide, Andrea"]
[Black "Garreta Crespo, Blas"]
[Result "0-1"]
[ECO "B13"]
[WhiteElo "1762"]
[BlackElo "1753"]
[Annotator "NA RC"]
[PlyCount "124"]
[EventDate "2019.08.19"]
[EventType "team-tourn"]
[EventCountry "ESP"]
[SourceTitle "playchess.com"]
[Source "ChessBase"]
[SourceQuality "1"]
[TimeControl "5400+30"]

1. e4 {[%emt 0:00:00]} c6 {[%emt 0:00:00]} 2. d4 {[%emt 0:00:00]} d5 {[%emt 0:00:00]} 3. exd5 {[%emt 0:00:22]} cxd5 {[%emt 0:00:17]} 4. Nf3 {[%emt 0:01:01]} Nf6 {[%emt 0:00:34]} 5. Bd3 {[%emt 0:01:31]} Bg4 {[%emt 0:02:00]} 6. O-O {[%emt 0:02:48]} e6 {[%emt 0:00:46]} 7. Nbd2 {[%emt 0:01:29]} Nc6 {[%emt 0:01:47]} 8. c3 {[%emt 0:00:20]} Bd6 {[%emt 0:01:36]} 9. Re1 {[%emt 0:05:48]} Qc7 {[%emt 0:02:50]} 10. h3 {[%emt 0:07:19]} Bh5 {[%emt 0:00:54]} 11. b4 {[%emt 0:03:39]} a6 {[%emt 0:02:45]} 12. Nb3 {[%emt 0:04:08]} O-O {[%emt 0:11:37]} 13. Bd2 {[%emt 0:03:37]} e5 {[%emt 0:03:01]} 14. dxe5 {[%emt 0:00:03]} Nxe5 {[%emt 0:04:38]} 15. Be2 {[%emt 0:00:02]} Bxf3 {[%emt 0:09:49]} 16. Bxf3 {[%emt 0:01:27]} Rfe8 {[%emt 0:19:14]} 17. Nd4 {[%emt 0:11:10]} Nd3 18. Rxe8+ {[%emt 0:13:26]} Rxe8 {[%emt 0:05:22]} 19. Qc2 {[%emt 0:11:37]} Ne5 {[%emt 0:03:43]} 20. Qf5 {[%emt 0:16:36]} Nxf3+ {[%emt 0:02:58]} 21. Nxf3 {[%emt 0:04:20]} Qc4 {[%emt 0:08:24]} 22. Nd4 {[%emt 0:04:44]} Bxb4 {[%emt 0:03:32]} 23. Rc1 {[%emt 0:04:17]} Bc5 {[%emt 0:04:04]} 24. Be3 {[%emt 0:00:44]} Qxa2 {[%emt 0:02:25]} 25. Bg5 {[%emt 0:00:13]} Ne4 {[%emt 0:02:30]} 26. Be3 {[%emt 0:00:38]} Qc4 {[%emt 0:04:08]} 27. Qd7 {[%emt 0:00:05]} Rf8 {[%emt 0:00:43]} 28. Qxb7 {[%emt 0:00:34]} a5 {[%emt 0:01:05]} 29. Qc6 {[%emt 0:01:34]} Nxc3 {[%emt 0:00:46]} 30. Qc7 {[%emt 0:00:57]} Bb4 {[%emt 0:01:36]} 31. Qxc4 {[%emt 0:00:30]} dxc4 {[%emt 0:00:07]} 32. Bd2 {[%emt 0:00:19]} Na2 {[%emt 0:01:36]} 33. Bxb4 {[%emt 0:00:41]} Nxc1 {[%emt 0:00:16]} 34. Bxf8 {[%emt 0:00:07]} Kxf8 {[%emt 0:00:13]} 35. Kf1 {[%emt 0:00:12]} a4 {[%emt 0:00:52]} 36. Nc2 {[%emt 0:00:02]} Ke7 {[%emt 0:00:17]} 37. Ke1 {[%emt 0:00:08]} Nd3+ 38. Kd2 {[%emt 0:00:30]} Kd6 {[%emt 0:00:34]} 39. Kc3 {[%emt 0:00:09]} Kc5 {[%emt 0:00:26]} 40. Na3 {[%emt 0:01:21]} Nxf2 {[%emt 0:00:54]} 41. Nxc4 {[%emt 0:00:07]} Ne4+ {[%emt 0:00:45]} 42. Kd3 {[%emt 0:00:08]} Nd6 {[%emt 0:00:36]} 43. Ne5 {[%emt 0:00:39]} f6 {[%emt 0:00:36]} 44. Nd7+ {[%emt 0:00:31]} Kb4 {[%emt 0:00:37]} 45. Kc2 {[%emt 0:00:02]} Nc4 {[%emt 0:00:12]} 46. Nb8 {[%emt 0:00:54]} Ne3+ {[%emt 0:00:10]} 47. Kb2 {[%emt 0:00:11]} Nxg2 {[%emt 0:00:20]} 48. Nc6+ {[%emt 0:00:05]} Kc5 {[%emt 0:00:16]} 49. Nd8 {[%emt 0:00:16]} f5 {[%emt 0:00:17]} 50. Ne6+ {[%emt 0:00:32]} Kb4 {[%emt 0:00:27]} 51. Nxg7 {[%emt 0:00:11]} f4 {[%emt 0:00:15]} 52. Nf5 {[%emt 0:01:30]} Ne1 {[%emt 0:01:18]} 53. h4 {[%emt 0:01:15]} f3 {[%emt 0:00:35]} 54. Ng3 {[%emt 0:00:25]} f2 {[%emt 0:00:19]} 55. h5 {[%emt 0:00:35]} Nf3 {[%emt 0:00:22]} 56. Nf1 {[%emt 0:00:18]} Nd4 {[%emt 0:00:43]} 57. Ng3 {[%emt 0:00:42]} a3+ {[%emt 0:00:23]} 58. Ka2 {[%emt 0:00:29]} Ne6 {[%emt 0:00:32]} 59. Nf1 {[%emt 0:00:24]} Nf4 {[%emt 0:00:09]} 60. h6 {[%emt 0:00:12]} Nh5 {[%emt 0:00:19]} 61. Kb1 {[%emt 0:00:59]} Nf6 {[%emt 0:00:51]} 62. Ne3 {[%emt 0:00:39]} Ng4 {[%emt 0:00:36]} 0-1

[Event "ESP-chT 2nd Division 2019"]
[Site "Linares"]
[Date "2019.08.19"]
[Round "1.31"]
[White "Biedma Martin, Enrique"]
[Black "Sos Andreu, Eric"]
[Result "1/2-1/2"]
[ECO "D91"]
[WhiteElo "2209"]
[BlackElo "2354"]
[Annotator "NA"]
[PlyCount "43"]
[EventDate "2019.08.19"]
[EventType "team-tourn"]
[EventCountry "ESP"]
[SourceTitle "playchess.com"]
[Source "ChessBase"]
[SourceQuality "1"]
[TimeControl "5400+30"]

1. d4 {[%emt 0:00:00]} Nf6 {[%emt 0:00:00]} 2. Nf3 {[%emt 0:00:00]} g6 {[%emt 0:00:00]} 3. c4 {[%emt 0:00:00]} Bg7 {[%emt 0:00:00]} 4. Nc3 {[%emt 0:00:00]} d5 {[%emt 0:00:04]} 5. Bg5 {[%emt 0:00:07]} Ne4 {[%emt 0:00:08]} 6. cxd5 {[%emt 0:00:05]} Nxg5 {[%emt 0:00:08]} 7. Nxg5 {[%emt 0:00:06]} e6 {[%emt 0:00:11]} 8. Qd2 {[%emt 0:00:07]} h6 {[%emt 0:00:02]} 9. Nh3 {[%emt 0:00:08]} exd5 {[%emt 0:00:09]} 10. Qe3+ {[%emt 0:00:11]} Kf8 {[%emt 0:00:04]} 11. Nf4 {[%emt 0:00:17]} c6 {[%emt 0:00:04]} 12. O-O-O {[%emt 0:00:18]} Nd7 13. Qd2 {[%emt 0:10:03]} Nf6 {[%emt 0:08:49]} 14. e3 {[%emt 0:01:16]} h5 {[%emt 0:00:34]} 15. Bd3 {[%emt 0:04:26]} Bh6 {[%emt 0:00:39]} 16. Kb1 {[%emt 0:04:05]} Qd6 {[%emt 0:04:11]} 17. h4 {[%emt 0:09:15]} Kg7 {[%emt 0:02:02]} 18. g3 {[%emt 0:02:22]} Bg4 {[%emt 0:04:12]} 19. Be2 {[%emt 0:00:32]} Bf5+ {[%emt 0:03:53]} 20. Bd3 {[%emt 0:01:43]} Bg4 {[%emt 0:07:15]} 21. Be2 {[%emt 0:00:14]} Bf5+ {[%emt 0:01:32]} 22. Bd3 {[%emt 0:00:31]} 1/2-1/2

[Event "ESP-chT 2nd Division 2019"]
[Site "Linares"]
[Date "2019.08.19"]
[Round "1.32"]
[White "Torres Sanchez, Jose"]
[Black "Rodriguez Perez, Angel Mariano"]
[Result "1-0"]
[ECO "B34"]
[WhiteElo "2304"]
[BlackElo "2223"]
[Annotator "NA"]
[PlyCount "59"]
[EventDate "2019.08.19"]
[EventType "team-tourn"]
[EventCountry "ESP"]
[SourceTitle "playchess.com"]
[Source "ChessBase"]
[SourceQuality "1"]
[TimeControl "5400+30"]

1. e4 {[%emt 0:00:00]} c5 {[%emt 0:00:00]} 2. Nf3 {[%emt 0:00:00]} Nc6 {[%emt 0:00:00]} 3. d4 {[%emt 0:00:41]} cxd4 {[%emt 0:00:04]} 4. Nxd4 {[%emt 0:00:04]} g6 {[%emt 0:00:05]} 5. Nxc6 {[%emt 0:02:01]} bxc6 {[%emt 0:01:23]} 6. c4 {[%emt 0:03:13]} Bg7 {[%emt 0:00:28]} 7. Be2 {[%emt 0:00:43]} Nf6 {[%emt 0:02:39]} 8. Nc3 {[%emt 0:00:23]} d6 {[%emt 0:00:29]} 9. O-O {[%emt 0:03:08]} O-O {[%emt 0:00:15]} 10. Be3 {[%emt 0:02:46]} Nd7 {[%emt 0:04:44]} 11. Na4 {[%emt 0:07:16]} c5 {[%emt 0:02:03]} 12. f4 {[%emt 0:02:39]} Nb6 {[%emt 0:03:36]} 13. Nc3 {[%emt 0:00:51]} Ba6 {[%emt 0:01:52]} 14. Nb5 {[%emt 0:03:19]} Bxb2 {[%emt 0:02:55]} 15. Rb1 {[%emt 0:00:47]} Bg7 {[%emt 0:00:28]} 16. Rb3 {[%emt 0:01:04]} Na4 {[%emt 0:10:05]} 17. Qc2 {[%emt 0:18:17]} Bxb5 {[%emt 0:06:09]} 18. cxb5 {[%emt 0:00:07]} Qc7 {[%emt 0:02:06]} 19. Ra3 {[%emt 0:03:09]} Nb6 {[%emt 0:00:48]} 20. Ra6 {[%emt 0:00:30]} Rac8 {[%emt 0:05:17]} 21. Bg4 {[%emt 0:11:26]} e6 {[%emt 0:00:53]} 22. f5 {[%emt 0:00:30]} exf5 {[%emt 0:03:33]} 23. exf5 {[%emt 0:00:22]} Nd5 {[%emt 0:01:33]} 24. Bg5 {[%emt 0:00:51]} Bd4+ {[%emt 0:01:39]} 25. Kh1 {[%emt 0:00:10]} Nb4 {[%emt 0:01:09]} 26. Qb3 {[%emt 0:06:51]} Nxa6 {[%emt 0:00:49]} 27. f6 {[%emt 0:00:36]} Rb8 {[%emt 0:07:01]} 28. Qh3 {[%emt 0:00:35]} Kh8 {[%emt 0:01:04]} 29. Qh6 {[%emt 0:00:10]} Rg8 {[%emt 0:00:29]} 30. Rf3 {[%emt 0:01:19]} 1-0

[Event "ESP-chT 2nd Division 2019"]
[Site "Linares"]
[Date "2019.08.19"]
[Round "1.33"]
[White "Espejo Montagut, Jonathan"]
[Black "Represa Perez, Mireya"]
[Result "0-1"]
[ECO "B99"]
[WhiteElo "2096"]
[BlackElo "2229"]
[Annotator "NA"]
[PlyCount "60"]
[EventDate "2019.08.19"]
[EventType "team-tourn"]
[EventCountry "ESP"]
[SourceTitle "playchess.com"]
[Source "ChessBase"]
[SourceQuality "1"]
[TimeControl "5400+30"]

1. e4 {[%emt 0:00:00]} c5 {[%emt 0:00:00]} 2. Nf3 {[%emt 0:00:26]} d6 {[%emt 0:00:00]} 3. d4 {[%emt 0:00:38]} cxd4 {[%emt 0:00:00]} 4. Nxd4 {[%emt 0:00:22]} Nf6 {[%emt 0:00:00]} 5. Nc3 {[%emt 0:00:05]} a6 {[%emt 0:00:00]} 6. Bg5 {[%emt 0:00:07]} e6 {[%emt 0:00:32]} 7. f4 {[%emt 0:01:49]} Be7 {[%emt 0:00:09]} 8. Qf3 {[%emt 0:00:11]} Qc7 {[%emt 0:00:06]} 9. O-O-O {[%emt 0:00:09]} Nbd7 {[%emt 0:00:15]} 10. g4 {[%emt 0:00:14]} b5 {[%emt 0:01:06]} 11. Bxf6 {[%emt 0:00:15]} Bxf6 {[%emt 0:00:31]} 12. g5 {[%emt 0:00:04]} Bxd4 {[%emt 0:01:35]} 13. Rxd4 {[%emt 0:01:47]} Bb7 {[%emt 0:00:37]} 14. Be2 {[%emt 0:13:15]} Rc8 {[%emt 0:04:33]} 15. Rhd1 {[%emt 0:23:34]} O-O {[%emt 0:17:48]} 16. Rxd6 {[%emt 0:03:32]} Nc5 {[%emt 0:01:33]} 17. R6d4 {[%emt 0:14:00]} Nxe4 {[%emt 0:08:29]} 18. a4 {[%emt 0:20:53]} Nd6 {[%emt 0:18:22]} 19. Qf2 {[%emt 0:02:04]} Qb6 {[%emt 0:00:52]} 20. a5 {[%emt 0:02:25]} Qc5 {[%emt 0:03:42]} 21. Qg1 {[%emt 0:02:01]} Nf5 {[%emt 0:06:20]} 22. Rd7 {[%emt 0:00:09]} Qxg1 {[%emt 0:02:40]} 23. Rxg1 {[%emt 0:00:05]} Bc6 {[%emt 0:00:51]} 24. Ra7 {[%emt 0:00:05]} b4 {[%emt 0:14:27]} 25. Nb1 {[%emt 0:00:18]} Be4 {[%emt 0:00:32]} 26. c3 {[%emt 0:03:35]} Nd4 {[%emt 0:06:15]} 27. Bxa6 {[%emt 0:04:05]} Nb3+ {[%emt 0:00:06]} 28. Kd1 {[%emt 0:00:04]} Ra8 {[%emt 0:01:19]} 29. Rxa8 {[%emt 0:00:23]} Rxa8 {[%emt 0:00:01]} 30. Bc4 {[%emt 0:00:09]} Nxa5 0-1

[Event "ESP-chT 2nd Division 2019"]
[Site "Linares"]
[Date "2019.08.19"]
[Round "1.34"]
[White "Meneses Gonzalez, Kevin Moises"]
[Black "Serrano Garcia, Luis"]
[Result "1-0"]
[ECO "A04"]
[WhiteElo "2251"]
[BlackElo "1908"]
[Annotator "NA"]
[PlyCount "61"]
[EventDate "2019.08.19"]
[EventType "team-tourn"]
[EventCountry "ESP"]
[SourceTitle "playchess.com"]
[Source "ChessBase"]
[SourceQuality "1"]
[TimeControl "5400+30"]

1. Nf3 {[%emt 0:00:00]} g6 {[%emt 0:00:00]} 2. g3 {[%emt 0:00:00]} Bg7 {[%emt 0:00:00]} 3. Bg2 {[%emt 0:00:00]} Nf6 {[%emt 0:00:17]} 4. O-O {[%emt 0:00:00]} d5 {[%emt 0:00:06]} 5. c4 {[%emt 0:00:42]} c6 {[%emt 0:06:58]} 6. b3 {[%emt 0:00:43]} O-O {[%emt 0:06:19]} 7. Bb2 {[%emt 0:02:05]} Bg4 {[%emt 0:02:47]} 8. d3 {[%emt 0:01:56]} Bxf3 {[%emt 0:05:54]} 9. Bxf3 {[%emt 0:01:03]} Nbd7 {[%emt 0:01:48]} 10. Nc3 {[%emt 0:04:11]} e6 {[%emt 0:02:00]} 11. Bg2 {[%emt 0:02:44]} Re8 {[%emt 0:01:59]} 12. b4 {[%emt 0:01:58]} a5 {[%emt 0:12:47]} 13. b5 {[%emt 0:01:13]} cxb5 {[%emt 0:08:16]} 14. Nxb5 {[%emt 0:00:16]} Nb6 {[%emt 0:09:55]} 15. Rc1 {[%emt 0:06:13]} Qd7 {[%emt 0:07:40]} 16. Qb3 {[%emt 0:06:47]} Ra6 {[%emt 0:10:38]} 17. Be5 {[%emt 0:03:49]} Rc8 {[%emt 0:05:56]} 18. a4 {[%emt 0:08:12]} Ne8 {[%emt 0:05:25]} 19. Bxg7 {[%emt 0:00:28]} Kxg7 {[%emt 0:00:12]} 20. c5 {[%emt 0:02:21]} Na8 {[%emt 0:00:55]} 21. e4 {[%emt 0:00:03]} Nac7 {[%emt 0:01:45]} 22. Nxc7 {[%emt 0:02:23]} Nxc7 {[%emt 0:01:53]} 23. Qxb7 {[%emt 0:00:15]} Raa8 {[%emt 0:00:23]} 24. exd5 {[%emt 0:00:55]} exd5 {[%emt 0:01:09]} 25. Qb2+ {[%emt 0:00:13]} Kg8 {[%emt 0:00:28]} 26. Rfe1 {[%emt 0:01:38]} Qxa4 {[%emt 0:03:33]} 27. Re7 {[%emt 0:01:57]} Qc6 {[%emt 0:00:48]} 28. Qe5 {[%emt 0:00:33]} a4 {[%emt 0:02:04]} 29. Bh3 {[%emt 0:00:04]} Ne6 {[%emt 0:01:44]} 30. Bxe6 {[%emt 0:00:14]} fxe6 {[%emt 0:00:08]} 31. Qg7# 1-0

[Event "ESP-chT 2nd Division 2019"]
[Site "Linares"]
[Date "2019.08.19"]
[Round "1.35"]
[White "Perdigones Gomez, Mercedes"]
[Black "Ballester Sanz, Joaquin"]
[Result "0-1"]
[ECO "B24"]
[WhiteElo "1317"]
[BlackElo "2027"]
[Annotator "NA RC"]
[PlyCount "95"]
[EventDate "2019.08.19"]
[EventType "team-tourn"]
[EventCountry "ESP"]
[SourceTitle "playchess.com"]
[Source "ChessBase"]
[SourceQuality "1"]
[TimeControl "5400+30"]

1. e4 {[%emt 0:00:00]} c5 {[%emt 0:00:00]} 2. Nc3 {[%emt 0:00:04]} Nc6 {[%emt 0:00:00]} 3. Bb5 {[%emt 0:01:08]} Nd4 {[%emt 0:00:31]} 4. Bc4 {[%emt 0:00:48]} a6 {[%emt 0:03:35]} 5. a4 {[%emt 0:01:43]} d6 {[%emt 0:03:26]} 6. h3 {[%emt 0:04:56]} g6 {[%emt 0:02:00]} 7. f4 {[%emt 0:03:40]} e6 {[%emt 0:01:54]} 8. Nf3 {[%emt 0:00:54]} Bg7 {[%emt 0:02:10]} 9. O-O {[%emt 0:02:39]} Ne7 {[%emt 0:02:53]} 10. Ne2 {[%emt 0:03:09]} Nxf3+ {[%emt 0:03:02]} 11. Rxf3 {[%emt 0:01:04]} d5 {[%emt 0:03:26]} 12. exd5 {[%emt 0:02:39]} exd5 {[%emt 0:00:23]} 13. Ba2 {[%emt 0:02:49]} O-O {[%emt 0:01:33]} 14. d4 {[%emt 0:07:35]} c4 {[%emt 0:01:54]} 15. c3 {[%emt 0:04:01]} Bf5 {[%emt 0:07:08]} 16. Ng3 {[%emt 0:04:43]} Qd7 {[%emt 0:07:57]} 17. Nxf5 {[%emt 0:13:37]} Nxf5 {[%emt 0:00:58]} 18. Bb1 {[%emt 0:02:35]} Nd6 {[%emt 0:01:21]} 19. Qf1 {[%emt 0:05:33]} f5 {[%emt 0:00:45]} 20. Be3 {[%emt 0:05:46]} Rae8 {[%emt 0:01:39]} 21. a5 {[%emt 0:05:44]} Bf6 {[%emt 0:02:54]} 22. Bc2 {[%emt 0:02:45]} Rc8 {[%emt 0:07:49]} 23. Bd2 {[%emt 0:04:39]} Kg7 {[%emt 0:02:05]} 24. Ba4 {[%emt 0:02:06]} Qe6 {[%emt 0:02:57]} 25. Re3 {[%emt 0:02:13]} Ne4 {[%emt 0:00:37]} 26. Qe1 {[%emt 0:01:49]} Bd8 {[%emt 0:02:04]} 27. Bc2 {[%emt 0:00:41]} Bc7 {[%emt 0:01:04]} 28. Re2 {[%emt 0:01:45]} Qd6 {[%emt 0:10:11]} 29. Bxe4 {[%emt 0:03:52]} dxe4 {[%emt 0:03:09]} 30. Qh4 {[%emt 0:01:44]} Bd8 {[%emt 0:06:27]} 31. Qf2 {[%emt 0:00:58]} Qd5 {[%emt 0:01:26]} 32. g4 {[%emt 0:03:30]} Rc6 {[%emt 0:02:38]} 33. g5 {[%emt 0:01:54]} Rh8 {[%emt 0:01:57]} 34. Qh4 {[%emt 0:01:08]} h5 {[%emt 0:01:21]} 35. gxh6+ {[%emt 0:00:25]} Rxh6 {[%emt 0:00:19]} 36. Qg3 {[%emt 0:00:12]} Bxa5 {[%emt 0:00:58]} 37. b4 {[%emt 0:00:26]} cxb3 {[%emt 0:01:30]} 38. Rxa5 {[%emt 0:02:24]} Qxa5 {[%emt 0:00:39]} 39. Qg5 {[%emt 0:00:18]} Qc7 {[%emt 0:02:03]} 40. Re3 {[%emt 0:01:32]} b2 {[%emt 0:00:40]} 41. Re1 {[%emt 0:00:24]} Rh5 {[%emt 0:01:40]} 42. Qg3 {[%emt 0:00:17]} Rb6 {[%emt 0:00:32]} 43. Rb1 {[%emt 0:00:18]} Qc4 {[%emt 0:00:22]} 44. d5 {[%emt 0:01:00]} Rb3 {[%emt 0:01:33]} 45. d6 {[%emt 0:00:27]} Qd3 {[%emt 0:01:13]} 46. Qxd3 exd3 {[%emt 0:00:02]} 47. d7 {[%emt 0:00:36]} Rh8 {[%emt 0:00:22]} 48. Be3 0-1